bitfinex/quotes_ETHUSD_20250715
["timestamp","ask_amount","ask_price","bid_price","bid_amount"]
[1752541407770,8.53093679,2984.3,2984.1,0.19080259]
[1752541408606,3.35098183,2984.2,2984.1,0.19080259]
[1752541408832,3.35098183,2984.2,2984.1,0.02360259]
[1752541412973,4.63139797,2984.2,2984.1,0.02360259]
[1752541413330,5.42249797,2984.2,2984.1,0.02360259]
[1752541417624,8.69807954,2984.3,2984.1,0.02360259]
[1752541417625,0.1672,2984.3,2984.1,0.02360259]
[1752541417828,0.1672,2984.3,2984.1,3.37465232]
[1752541418026,0.1682,2984.5,2984.1,3.37465232]
[1752541418201,5.175,2984.4,2984.2,3.35096791]
[1752541418600,0.001,2984.5,2984.4,3.35075727]
[1752541418798,0.001,2984.5,2984.4,4.37066484]
[1752541419000,0.001,2984.5,2984.4,4.92066484]
[1752541419310,5.176,2984.5,2984.4,4.92066484]
[1752541419484,5.176,2984.5,2984.4,5.79145163]
[1752541419687,5.176,2984.5,2984.4,5.24145163]
[1752541420500,5.176,2984.5,2984.3,3.35085963]
[1752541420700,0.001,2984.5,2984.4,3.35075727]
[1752541420900,5.18,2984.5,2984.2,0.1672]
[1752541421104,5.18,2984.5,2984.2,3.51808298]
[1752541421501,5.18,2984.5,2984.2,0.1672]
[1752541421704,0.001,2984.5,2984.3,3.35085277]
[1752541421902,5.179,2984.4,2984.3,3.35079581]
[1752541422426,5.179,2984.4,2984.2,3.51814114]
[1752541422589,5.179,2984.4,2984.2,3.35094114]
[1752541422943,5.179,2984.4,2984.1,4.37014308]
[1752541423501,5.9425,2984.4,2984.1,0.02360259]
[1752541423704,6.1097,2984.4,2984.1,0.02360259]
[1752541423904,6.1097,2984.4,2984.1,3.37467006]
[1752541424150,0.1672,2984.4,2984.3,3.35086955]
[1752541424442,5.3472,2984.4,2984.2,3.35093572]
[1752541424647,3.35092727,2984.3,2984.1,0.02360259]
[1752541424862,9.1481597,2984.4,2984.1,0.02360259]
[1752541425007,3.35098183,2984.2,2984.1,0.02360259]
[1752541425624,0.7983,2984.5,2984.1,0.02360259]
[1752541425923,0.001,2984.5,2984.4,3.15075727]
[1752541426258,5.185,2984.5,2984.4,0.31507573]
[1752541426420,5.185,2984.5,2984.1,0.02360259]
[1752541426618,5.9395,2984.5,2984.1,0.02360259]
[1752541427065,9.29015481,2984.5,2984.1,0.02360259]
[1752541427225,5.9395,2984.5,2984.1,0.02360259]
[1752541427565,0.7882,2984.2,2984.1,0.02360259]
[1752541427722,5.9732,2984.2,2984.1,0.02360259]
[1752541429220,5.185,2984.2,2984.1,0.02360259]
[1752541431742,5.184,2984.2,2984.1,0.02360259]
[1752541432048,5.182,2984.2,2984.1,3.37467447]
[1752541432462,5.182,2984.2,2984.1,0.02360259]
[1752541432639,5.182,2984.2,2984.1,3.37469672]
[1752541432835,5.182,2984.2,2984.1,0.02360259]
[1752541433083,5.182,2984.2,2984.1,3.37469672]
[1752541433758,5.182,2984.2,2984.1,0.02360259]
[1752541433960,5.7002,2984.2,2984.1,0.02360259]
[1752541436983,0.1672,2984.1,2983.8,3.27702032]
[1752541437142,5.179,2984.0,2983.5,0.1672]
[1752541437343,0.9521,2983.9,2983.5,0.1672]
[1752541437548,5.177,2983.8,2983.5,3.51890564]
[1752541437769,5.177,2983.8,2983.5,3.35170564]
[1752541438082,5.177,2983.8,2983.4,3.35182706]
[1752541438255,3.35174134,2983.6,2983.1,0.04]
[1752541438464,5.177,2983.5,2983.4,3.3518804]
[1752541438644,0.1672,2983.7,2983.6,3.35165571]
[1752541438850,5.3532,2983.7,2983.6,3.35165571]
[1752541439185,0.1672,2983.9,2983.4,0.1672]
[1752541439393,5.186,2983.8,2983.6,3.35156698]
[1752541439573,0.7849,2984.0,2983.8,3.35135787]
[1752541439777,5.186,2983.9,2983.8,3.35135787]
[1752541440290,5.186,2983.9,2983.7,3.35148486]
[1752541440589,5.186,2983.9,2983.4,3.35183103]
[1752541440784,0.1672,2983.8,2983.6,3.35158481]
[1752541440956,5.185,2983.7,2983.6,3.35158481]
[1752541441290,5.185,2983.7,2983.2,3.35202961]
[1752541441291,6.50512,2983.7,2983.2,3.35202961]
[1752541441443,4.6716948,2983.7,2983.1,0.04]
[1752541441793,0.7849,2984.0,2983.5,3.35170607]
[1752541442007,3.35148758,2983.8,2983.2,3.35210512]
[1752541442303,5.19,2983.7,2983.1,0.04]
[1752541442444,5.19,2983.7,2983.4,3.35180206]
[1752541442644,5.19,2983.7,2983.3,3.3519056]
[1752541442899,5.19,2983.7,2983.2,0.41759792]
[1752541442900,3.3518861,2983.4,2983.1,0.04]
[1752541443100,5.19,2983.3,2983.1,0.04]
[1752541443966,3.35210512,2983.2,2983.1,0.04]
[1752541444474,5.192,2983.2,2983.1,0.04]
[1752541446202,8.54410512,2983.2,2983.1,0.04]
[1752541446414,8.54410512,2983.2,2983.1,3.39221749]
[1752541446415,0.5192,2983.2,2983.1,3.39221749]
[1752541446617,0.7512,2984.1,2983.8,3.35133012]
[1752541446789,0.70799579,2984.8,2984.4,3.35075727]
[1752541447112,0.30734097,2985.1,2984.4,4.17065727]
[1752541447313,5.21,2985.2,2984.4,4.17065727]
[1752541448031,5.211,2984.9,2984.4,4.17065727]
[1752541448389,0.8281,2985.0,2984.4,4.17065727]
[1752541448724,5.211,2984.7,2984.4,3.35075727]
[1752541448919,0.7576,2985.3,2984.4,4.10008108]
[1752541449252,5.21,2985.0,2984.4,4.10008108]
[1752541449730,0.001,2985.3,2985.2,3.3498593]
[1752541451195,0.001,2985.3,2985.2,3.5170593]
[1752541451397,0.001,2985.3,2984.8,0.8082]
[1752541451618,0.1672,2985.2,2984.6,3.35053273]
[1752541451834,0.1672,2985.2,2985.0,3.35000306]
[1752541452046,0.1672,2985.2,2985.1,3.34997152]
[1752541452390,0.001,2985.3,2985.2,3.3498593]
[1752541453138,0.001,2985.3,2985.1,3.34993462]
[1752541453338,0.001,2985.3,2984.6,0.49080565]
[1752541453339,0.8318,2985.3,2984.7,0.8262]
[1752541453653,0.1682,2985.3,2985.2,3.3498593]
[1752541453852,0.1682,2985.3,2985.1,3.34993164]
[1752541454169,0.1682,2985.3,2984.7,1.0269042]
[1752541454366,0.1682,2985.3,2984.7,0.9934]
[1752541454662,0.1682,2985.3,2984.8,3.35030822]
[1752541454849,0.1682,2985.3,2984.9,3.35019598]
[1752541455470,3.51795148,2985.3,2984.8,0.43437082]
[1752541455628,0.1682,2985.3,2984.8,3.35030807]
[1752541456165,0.1682,2985.3,2984.7,0.9934]
[1752541456542,0.1682,2985.3,2984.9,3.35011727]
[1752541456754,0.1682,2985.3,2985.0,3.35001928]
[1752541457131,0.1682,2985.3,2984.9,3.35016056]
[1752541457343,0.1682,2985.3,2984.8,3.35027959]
[1752541457737,0.1682,2985.3,2984.8,3.35030411]
[1752541458574,0.1682,2985.3,2984.9,3.35017169]
[1752541458735,0.1682,2985.3,2984.8,3.3502847]
[1752541459630,0.1682,2985.3,2984.9,3.35019252]
[1752541459966,0.001,2985.3,2985.2,3.3498593]
[1752541462193,0.001,2985.3,2985.1,3.51714555]
[1752541462498,0.001,2985.3,2985.1,0.1672]
[1752541462674,0.001,2985.3,2985.1,3.51713565]
[1752541462996,0.001,2985.3,2985.2,3.3498593]
[1752541463192,0.001,2985.3,2985.1,0.1672]
[1752541463393,0.001,2985.3,2985.1,3.51714552]
[1752541463596,0.001,2985.3,2985.1,0.1672]
[1752541464325,0.001,2985.3,2985.1,3.51709789]
[1752541464596,0.001,2985.3,2985.2,3.3498593]
[1752541464796,0.001,2985.3,2985.2,3.5170593]
[1752541465601,0.001,2985.3,2985.2,4.10055789]
[1752541465785,0.001,2985.3,2985.2,4.92015789]
[1752541466601,0.001,2985.5,2985.4,3.89963488]
[1752541466901,0.001,2985.5,2985.4,3.93313122]
[1752541467196,0.001,2985.5,2985.4,4.10033122]
[1752541467398,0.001,2985.5,2985.4,4.92733122]
[1752541467602,0.04,2985.9,2985.8,3.89918614]
[1752541467899,0.04,2985.9,2985.8,25.13958166]
[1752541468117,0.04,2985.9,2985.8,25.30678166]
[1752541468494,0.001,2986.3,2985.8,25.30678166]
[1752541468495,0.001,2986.3,2986.2,3.89873752]
[1752541468694,0.001,2986.3,2986.2,4.68252489]
[1752541468919,0.001,2986.3,2986.2,4.84972489]
[1752541469124,0.001,2986.3,2986.2,6.19018191]
[1752541469430,0.001,2986.3,2986.2,6.15669454]
[1752541469786,0.001,2986.3,2986.2,0.1672]
[1752541469984,0.001,2986.3,2985.9,0.7721]
[1752541470184,0.001,2986.3,2986.0,3.5160501]
[1752541470614,0.001,2986.3,2986.0,0.1672]
[1752541470791,0.001,2986.3,2986.0,3.51614477]
[1752541470988,0.001,2986.3,2986.0,0.9353626]
[1752541471187,0.001,2986.3,2986.2,0.1672]
[1752541473447,0.001,2986.3,2986.2,4.27323752]
[1752541473753,0.001,2986.3,2986.2,4.82323752]
[1752541474649,0.001,2986.3,2986.2,0.1672]
[1752541475006,0.001,2986.3,2986.2,4.06593752]
[1752541475324,0.001,2986.3,2986.2,4.80741562]
[1752541475911,0.001,2986.3,2986.2,4.84090299]
[1752541477442,0.001,2986.3,2986.2,5.60661562]
[1752541477829,0.001,2986.3,2986.2,5.64010299]
[1752541478000,0.001,2986.3,2986.2,5.60661562]
[1752541479251,0.001,2986.3,2986.2,20.84910299]
[1752541479466,0.001,2986.3,2986.2,20.81561562]
[1752541480566,0.001,2986.3,2986.2,15.60661562]
[1752541480739,0.001,2986.3,2986.2,20.81461562]
[1752541483569,0.001,2986.3,2986.2,15.60661562]
[1752541483770,0.001,2986.3,2986.2,10.80661562]
[1752541483976,0.001,2986.3,2986.2,15.60661562]
[1752541484442,0.001,2986.5,2986.4,3.34851326]
[1752541484625,0.001,2986.5,2986.4,17.67089915]
[1752541484830,0.001,2986.5,2986.4,17.80461402]
[1752541491236,0.001,2986.5,2986.4,3.51571326]
[1752541494349,0.001,2986.5,2986.4,3.54919839]
[1752541494553,0.7869,2986.5,2985.4,0.8326]
[1752541494747,0.7869,2986.5,2985.3,4.7789847]
[1752541494748,0.9541,2986.5,2985.8,3.34910893]
[1752541495083,0.1672,2986.2,2985.8,3.34912818]
[1752541495272,0.7859,2986.1,2985.9,3.34904224]
[1752541495587,0.7859,2986.1,2986.0,3.34896182]
[1752541496362,0.7713,2986.4,2986.3,3.34862538]
[1752541496563,0.001,2986.5,2986.4,3.34851326]
[1752541499189,0.001,2986.5,2986.4,3.38199839]
[1752541499485,0.001,2986.5,2986.4,4.07198077]
[1752541499986,0.001,2986.5,2986.4,4.62198077]
[1752541500284,0.001,2986.5,2986.4,5.40869564]
[1752541500484,0.001,2986.5,2986.4,5.44218077]
[1752541500681,0.001,2986.5,2986.4,5.40869564]
[1752541500869,0.001,2986.5,2986.4,5.44218077]
[1752541501071,0.001,2986.5,2986.4,3.34851326]
[1752541505190,0.001,2986.5,2986.3,0.1692]
[1752541505392,0.7909,2986.4,2986.3,3.51782538]
[1752541506092,0.7909,2986.4,2986.3,3.35062538]
[1752541506280,0.7909,2986.4,2986.3,0.002]
[1752541507279,5.9769,2986.4,2986.3,3.35062538]
[1752541508496,0.1682,2986.5,2986.4,3.34851326]
[1752541508699,5.185,2986.5,2986.4,3.34851326]
[1752541509163,5.185,2986.5,2986.3,3.3505975]
[1752541509796,5.185,2986.5,2986.4,3.34851326]
[1752541509975,5.185,2986.5,2986.3,3.35056652]
[1752541510299,5.185,2986.5,2986.3,0.002]
[1752541510455,5.185,2986.5,2986.3,3.35062185]
[1752541510800,5.185,2986.5,2986.3,0.002]
[1752541510999,5.185,2986.5,2986.4,3.34851326]
[1752541512399,5.185,2986.5,2986.4,4.58514619]
[1752541514223,0.001,2986.5,2986.4,5.40284619]
[1752541514506,0.001,2986.5,2986.4,5.43633132]
[1752541518100,0.001,2986.5,2986.4,4.58514619]
[1752541519139,0.001,2986.5,2986.4,4.61863132]
[1752541520237,0.001,2986.5,2986.4,4.58514619]
[1752541521235,0.001,2986.5,2986.4,25.09507902]
[1752541521396,0.001,2986.5,2986.4,25.06159389]
[1752541521607,0.04,2986.9,2986.8,3.89806481]
[1752541521805,0.04,2986.9,2986.8,3.93154545]
[1752541522050,0.04,2986.9,2986.8,4.09874545]
[1752541522337,0.04,2986.9,2986.8,4.88014545]
[1752541523538,0.04,2986.9,2986.8,4.06526481]
[1752541523735,0.04,2986.9,2986.8,5.40525817]
[1752541523922,0.04,2986.9,2986.8,5.43873881]
[1752541524244,0.04,2986.9,2986.8,5.40525817]
[1752541524965,0.04,2986.9,2986.8,5.43873881]
[1752541527379,0.04,2986.9,2986.8,31.05428651]
[1752541527523,0.04,2986.9,2986.8,31.2727561]
[1752541527923,0.001,2987.5,2987.4,4.64889238]
[1752541528181,0.001,2987.5,2987.4,5.44853143]
[1752541528327,0.001,2987.5,2987.4,4.69703143]
[1752541528518,0.001,2987.5,2987.4,4.86423143]
[1752541528723,0.001,2987.5,2987.4,4.31423143]
[1752541529920,0.001,2987.5,2987.4,5.64920535]
[1752541530249,0.001,2987.5,2987.4,5.61573143]
[1752541530757,0.001,2987.5,2987.4,5.64920535]
[1752541532165,0.001,2987.5,2987.4,5.61573143]
[1752541532376,0.001,2987.5,2987.4,4.86423143]
[1752541532526,0.001,2987.5,2987.4,4.06459238]
[1752541533430,0.001,2987.5,2987.4,3.51459238]
[1752541537340,0.001,2987.5,2987.4,4.8978663]
[1752541537670,0.001,2987.5,2987.4,4.86439238]
[1752541538365,0.001,2987.5,2987.4,14.8978663]
[1752541538577,0.001,2987.5,2987.4,16.68892882]
[1752541538784,1e-08,2987.7,2987.4,13.34153644]
[1752541539067,1e-08,2987.7,2987.6,24.36811599]
[1752541539426,1e-08,2987.7,2987.6,24.53531599]
[1752541540985,1e-08,2987.9,2987.8,14.70654423]
[1752541541142,1e-08,2987.9,2987.8,17.49812824]
[1752541541343,1e-08,2987.9,2987.8,17.66532824]
[1752541542948,0.001,2989.1,2988.8,3.89582441]
[1752541543352,0.001,2989.1,2988.8,4.06302441]
[1752541543553,0.041,2988.9,2988.8,4.06302441]
[1752541543750,0.8643,2988.9,2988.8,0.1672]
[1752541543948,0.8643,2988.9,2987.6,9.6950477]
[1752541543949,0.8643,2988.9,2988.4,3.346255]
[1752541544259,0.8233,2988.8,2988.2,3.34649326]
[1752541544454,0.8137,2988.6,2988.4,3.51346226]
[1752541544661,0.8137,2988.6,2988.4,0.1672]
[1752541545073,0.8137,2988.6,2988.4,3.51346938]
[1752541545271,0.8137,2988.6,2988.5,3.34616028]
[1752541545478,0.8137,2988.6,2988.4,3.51341408]
[1752541545875,0.8137,2988.6,2988.4,0.1672]
[1752541546074,5.9757,2988.6,2988.5,3.34616028]
[1752541546284,5.9757,2988.6,2988.5,0.1672]
[1752541546992,5.9757,2988.6,2988.5,3.51336028]
[1752541547177,5.9757,2988.6,2988.5,0.1672]
[1752541547379,5.9757,2988.6,2988.5,3.51336028]
[1752541547852,5.9757,2988.6,2988.5,0.1672]
[1752541548311,5.9757,2988.6,2988.5,3.51336028]
[1752541548475,5.9757,2988.6,2988.5,0.1672]
[1752541548802,4.17382187,2988.5,2987.1,3.34772856]
[1752541548975,0.8276,2988.4,2988.0,3.51390114]
[1752541549294,0.8276,2988.4,2988.2,0.1672]
[1752541549468,5.16,2988.5,2988.4,3.34627225]
[1752541549667,5.16,2988.5,2987.8,10.0]
[1752541549881,5.16,2988.5,2988.3,0.1672]
[1752541550381,0.8276,2988.3,2987.3,5.5861]
[1752541550586,4.17404337,2988.3,2987.9,0.1672]
[1752541550810,0.7706,2988.2,2987.9,0.1672]
[1752541551199,5.168,2988.1,2987.9,0.1672]
[1752541551372,0.7706,2988.0,2987.7,0.1672]
[1752541551857,4.11735088,2988.0,2987.7,0.1672]
[1752541552053,0.7706,2988.0,2987.9,3.34683222]
[1752541552275,0.1672,2988.5,2988.1,3.34653693]
[1752541552509,5.168,2988.4,2988.1,3.34653693]
[1752541552865,0.7706,2988.3,2988.0,3.3466669]
[1752541553063,0.7706,2988.3,2988.0,3.34672021]
[1752541553484,0.7706,2988.3,2988.0,3.34665678]
[1752541554358,0.7706,2988.3,2987.9,0.1672]
[1752541554582,0.7706,2988.3,2988.2,3.34649621]
[1752541554782,5.9386,2988.3,2988.1,3.34656687]
[1752541555124,5.9386,2988.3,2988.0,3.34667941]
[1752541555420,5.9386,2988.3,2987.9,3.51402237]
[1752541555626,0.9378,2988.5,2988.2,3.34641748]
[1752541555800,5.168,2988.4,2988.2,3.34641748]
[1752541556418,5.168,2988.4,2987.9,0.35140224]
[1752541556616,5.168,2988.4,2988.1,3.51372794]
[1752541557628,5.168,2988.4,2988.3,3.34638423]
[1752541558183,0.7706,2988.5,2988.4,3.34627225]
[1752541558389,5.164,2988.5,2988.4,4.0155379]
[1752541558589,0.041,2988.9,2988.8,3.34582441]
[1752541558816,5.207,2988.9,2988.8,3.51302441]
[1752541558990,5.206,2988.9,2988.8,3.51302441]
[1752541559312,5.206,2988.9,2988.8,4.06302441]
[1752541559629,5.206,2988.9,2988.8,4.74892049]
[1752541560870,5.205,2988.9,2988.8,0.1672]
[1752541561132,6.0291,2988.9,2988.6,0.1672]
[1752541561289,0.8241,2988.8,2988.3,0.1672]
[1752541561487,0.9913,2988.7,2988.3,3.34638307]
[1752541561690,0.9913,2988.7,2988.2,3.51364315]
[1752541561691,4.33725134,2988.7,2988.2,3.51364315]
[1752541561890,0.8241,2988.6,2988.2,0.1672]
[1752541562148,5.167,2988.5,2988.2,0.1672]
[1752541562693,5.167,2988.5,2988.2,3.51363893]
[1752541563036,5.167,2988.5,2988.2,3.51363871]
[1752541563453,5.167,2988.5,2988.3,3.34637231]
[1752541563636,5.167,2988.5,2988.4,3.34627225]
[1752541564346,0.8251,2988.6,2988.5,3.34616028]
[1752541564501,5.165,2988.6,2988.5,3.34616028]
[1752541564704,5.165,2988.6,2988.5,4.39797631]
[1752541565848,5.165,2988.6,2988.5,3.51336028]
[1752541567171,5.165,2988.6,2988.5,4.06336028]
[1752541568438,5.165,2988.6,2988.5,3.51336028]
[1752541569346,5.163,2988.6,2988.5,3.51336028]
[1752541569541,0.001,2988.6,2988.5,4.06336028]
[1752541569742,0.001,2988.6,2988.5,5.63308437]
[1752541571340,0.001,2988.6,2988.5,5.59962277]
[1752541574447,0.001,2988.6,2988.5,4.80432277]
[1752541583536,0.784,2988.6,2988.5,0.1672]
[1752541584106,0.784,2988.6,2988.5,3.51336028]
[1752541584299,0.784,2988.6,2988.5,0.1672]
[1752541584505,0.784,2988.6,2988.1,3.34660821]
[1752541584677,0.9512,2988.6,2988.3,3.34630932]
[1752541584897,0.784,2988.6,2988.4,3.34621593]
[1752541585102,0.784,2988.6,2988.4,3.51341593]
[1752541585498,0.784,2988.6,2988.4,0.1672]
[1752541585704,1.19698386,2988.6,2988.4,0.1672]
[1752541586041,1.19698386,2988.6,2988.4,3.51346221]
[1752541586329,0.784,2988.6,2988.4,3.51346221]
[1752541588938,0.7886,2988.3,2987.9,0.002]
[1752541589105,0.7886,2988.0,2987.9,0.002]
[1752541589308,2.38316,2988.0,2987.9,0.002]
[1752541589910,5.72988021,2988.0,2987.9,0.002]
[1752541590208,15.72988021,2988.0,2987.9,0.002]
[1752541594940,2.38316,2988.0,2987.9,0.002]
[1752541595130,0.7886,2988.0,2987.9,0.002]
[1752541595443,5.157,2988.2,2987.9,0.002]
[1752541595744,5.157,2988.2,2988.1,3.89660821]
[1752541596130,0.001,2988.6,2988.5,3.34616028]
[1752541596312,0.001,2988.6,2988.5,4.59886461]
[1752541597117,0.001,2988.6,2988.5,4.56540301]
[1752541597806,0.001,2988.6,2988.5,4.59886461]
[1752541598040,0.001,2988.6,2988.5,4.56540301]
[1752541598343,0.001,2988.6,2988.5,4.59886461]
[1752541598942,0.001,2988.6,2988.5,4.76606461]
[1752541599404,0.001,2988.6,2988.5,5.54250301]
[1752541601657,0.001,2988.6,2988.5,5.57596461]
[1752541602947,1e-08,2988.6,2988.5,5.57596461]
[1752541605141,1e-08,2988.6,2988.5,5.54250301]
[1752541609484,1e-08,2988.6,2988.5,3.51336028]
[1752541610464,1e-08,2988.6,2988.5,4.09682188]
[1752541611387,1e-08,2988.6,2988.5,3.51336028]
[1752541611557,0.77990001,2988.6,2987.9,10.002]
[1752541611762,0.77990001,2988.6,2988.4,0.1672]
[1752541612082,0.77990001,2988.6,2988.5,3.34616028]
[1752541612786,0.77990001,2988.6,2988.4,3.51341099]
[1752541612993,0.77990001,2988.6,2988.5,3.34616028]
[1752541613792,0.77990001,2988.6,2987.9,0.002]
[1752541613960,0.8156,2988.4,2987.9,3.34875854]
[1752541614165,0.8156,2988.4,2987.9,3.34880406]
[1752541614166,0.1672,2988.3,2987.9,3.34880406]
[1752541614465,0.1672,2988.3,2988.0,3.34672021]
[1752541614784,0.1672,2988.3,2988.1,3.34658627]
[1752541615705,0.1672,2988.3,2987.9,0.002]
[1752541616501,0.8031,2988.1,2987.9,0.002]
[1752541616701,9.31202021,2988.0,2987.9,0.002]
[1752541617002,19.31202021,2988.0,2987.9,0.002]
[1752541617558,10.7993,2988.0,2987.9,0.002]
[1752541617758,19.31602021,2988.0,2987.9,0.002]
[1752541617988,21.1470509,2988.0,2987.9,0.002]
[1752541619485,17.80033069,2988.0,2987.9,0.002]
[1752541619864,21.1470509,2988.0,2987.9,0.002]
[1752541620574,17.80033069,2988.0,2987.9,0.002]
[1752541620901,17.80233069,2988.0,2987.9,0.002]
[1752541621111,15.9713,2988.0,2987.9,0.002]
[1752541621396,19.31802021,2988.0,2987.9,0.002]
[1752541621583,5.9713,2988.0,2987.9,0.002]
[1752541621787,0.9665,2988.0,2987.9,0.002]
[1752541621990,6.1405,2988.0,2987.9,0.002]
[1752541622188,0.7523,2988.3,2987.9,3.34883222]
[1752541622408,5.175,2988.0,2987.9,3.34883222]
[1752541622796,5.175,2988.0,2987.9,4.58512923]
[1752541623110,5.175,2988.0,2987.9,4.75232923]
[1752541628392,5.175,2988.0,2987.9,3.51603222]
[1752541629201,0.7502,2988.5,2988.4,3.34627225]
[1752541629382,5.9182,2988.5,2988.4,3.34627225]
[1752541629583,5.9182,2988.5,2987.9,0.7192]
[1752541629899,5.9182,2988.5,2988.3,3.3463208]
[1752541630101,6.52674,2988.5,2988.3,3.3463208]
[1752541630437,0.7502,2988.5,2988.4,3.34627225]
[1752541630628,5.9182,2988.5,2988.4,3.34627225]
[1752541631539,5.9182,2988.5,2988.3,3.34633431]
[1752541632216,5.9182,2988.5,2988.4,3.34627225]
[1752541633501,0.7502,2988.5,2988.4,3.34627225]
[1752541633831,5.9192,2988.5,2988.4,3.34627225]
[1752541634200,5.9192,2988.5,2988.3,3.34633658]
[1752541634396,5.9192,2988.5,2988.2,3.34639529]
[1752541634601,6.52784,2988.5,2988.0,3.34669104]
[1752541634905,6.69504,2988.5,2988.1,3.34649989]
[1752541635327,6.69504,2988.5,2988.0,3.34670218]
[1752541635328,6.69504,2988.5,2987.9,0.1692]
[1752541635529,6.0864,2988.5,2988.4,3.34627225]
[1752541635741,6.0864,2988.5,2988.3,3.34633741]
[1752541636718,6.0864,2988.5,2987.9,0.1692]
[1752541637043,6.0864,2988.5,2988.2,3.34649323]
[1752541637340,6.0864,2988.5,2988.1,3.34656988]
[1752541637550,6.69504,2988.5,2988.1,3.34656988]
[1752541637752,6.69504,2988.5,2988.0,3.34671736]
[1752541637956,6.69504,2988.5,2988.1,3.34653476]
[1752541638130,6.69504,2988.5,2988.2,3.34648963]
[1752541638456,0.669504,2988.4,2988.0,3.34666196]
[1752541638649,0.7542,2988.3,2987.9,0.002]
[1752541638814,5.3352,2988.2,2987.9,3.34882006]
[1752541639637,5.3352,2988.2,2988.1,3.34658452]
[1752541640018,5.168,2988.2,2988.1,3.34658452]
[1752541640565,0.7542,2988.3,2988.2,3.34649621]
[1752541640860,5.166,2988.3,2988.2,3.34649621]
[1752541643020,5.166,2988.3,2988.0,0.1672]
[1752541643247,5.78051,2988.3,2987.9,0.002]
[1752541643450,5.94771,2988.3,2988.1,3.34658348]
[1752541643675,5.94771,2988.3,2988.1,3.34654577]
[1752541643924,5.3332,2988.3,2988.2,3.34649621]
[1752541644232,5.3332,2988.3,2988.1,3.3465708]
[1752541644433,5.3332,2988.3,2988.0,3.34666362]
[1752541644633,5.3332,2988.3,2988.1,3.34660423]
[1752541645076,5.3332,2988.3,2988.0,3.3466827]
[1752541645370,5.3332,2988.3,2987.9,0.002]
[1752541645669,5.3332,2988.3,2988.0,3.34663125]
[1752541645829,5.3332,2988.3,2988.1,3.34659421]
[1752541646365,5.3332,2988.3,2988.2,3.34649621]
[1752541646768,5.3332,2988.3,2988.0,3.34666311]
[1752541647068,0.1672,2988.3,2988.2,3.34649621]
[1752541647366,5.16,2988.2,2988.1,3.34660821]
[1752541647531,5.16,2988.2,2988.1,4.11368105]
[1752541647864,5.16,2988.2,2988.1,3.34660821]
[1752541648873,5.9683,2988.2,2988.0,3.34666052]
[1752541649367,5.9683,2988.2,2987.9,3.34878503]
[1752541649525,5.9683,2988.2,2988.0,3.34668735]
[1752541649723,5.9683,2988.2,2988.1,3.34660821]
[1752541650327,5.16,2988.2,2988.1,3.34660821]
[1752541650523,0.1672,2988.3,2988.2,3.34649621]
[1752541650828,5.3302,2988.3,2988.2,3.34649621]
[1752541652484,5.3302,2988.3,2988.1,3.34655126]
[1752541652687,5.3302,2988.3,2988.0,3.34668639]
[1752541652886,5.3302,2988.3,2987.9,3.34880432]
[1752541653091,5.163,2988.3,2988.0,3.34672021]
[1752541653385,5.163,2988.3,2988.2,3.34649621]
[1752541656696,1e-08,2988.6,2988.4,3.34625454]
[1752541656860,5.16,2988.5,2988.4,3.34625454]
[1752541657059,5.16,2988.5,2988.3,3.34632759]
[1752541657258,5.16,2988.5,2988.1,0.1672]
[1752541657478,5.16,2988.5,2988.2,3.34643428]
[1752541657979,5.16,2988.5,2988.1,0.1672]
[1752541657980,6.10986923,2988.5,2988.1,0.1672]
[1752541658257,0.8227,2988.0,2987.9,0.002]
[1752541658457,5.9827,2988.0,2987.9,0.002]
[1752541659553,9.32942021,2988.0,2987.9,0.002]
[1752541659977,10.61373555,2988.0,2987.9,0.002]
[1752541660161,7.26701534,2988.0,2987.9,0.002]
[1752541661597,10.61373555,2988.0,2987.9,0.002]
[1752541662103,20.61373555,2988.0,2987.9,0.002]
[1752541664602,15.45373555,2988.0,2987.9,0.002]
[1752541664791,20.61473555,2988.0,2987.9,0.002]
[1752541665388,10.8227,2988.0,2987.9,0.002]
[1752541665589,15.9837,2988.0,2987.9,0.002]
[1752541666581,19.33042021,2988.0,2987.9,0.002]
[1752541669215,15.9837,2988.0,2987.9,0.002]
[1752541669520,19.33042021,2988.0,2987.9,0.002]
[1752541669820,15.9837,2988.0,2987.9,0.002]
[1752541670023,5.161,2988.0,2987.9,0.002]
[1752541670319,5.161,2988.0,2987.9,3.34883222]
[1752541670617,5.161,2988.0,2987.9,4.01840899]
[1752541670792,0.1672,2988.3,2987.9,4.01840899]
[1752541671119,5.161,2988.2,2988.0,3.34672021]
[1752541671426,0.1672,2988.3,2987.9,0.67157677]
[1752541671623,5.161,2988.2,2988.0,3.51392021]
[1752541671925,5.161,2988.1,2988.0,3.51387922]
[1752541672424,5.161,2988.1,2988.0,0.1672]
[1752541673084,5.161,2988.1,2987.9,0.002]
[1752541673512,5.161,2988.1,2987.9,3.34881938]
[1752541673762,5.161,2988.1,2987.9,0.002]
[1752541673934,8.6749164,2988.1,2987.9,0.002]
[1752541674084,14.10102021,2988.0,2987.9,0.002]
[1752541674285,14.26822021,2988.0,2987.9,0.002]
[1752541681248,16.28022021,2988.0,2987.9,0.002]
[1752541681430,14.26822021,2988.0,2987.9,0.002]
[1752541681647,15.68140919,2988.0,2987.9,0.002]
[1752541682912,4.11477992,2987.1,2986.9,0.002]
[1752541683107,5.3282,2987.0,2986.9,0.002]
[1752541683559,8.67604064,2987.0,2986.9,0.002]
[1752541683838,18.67604064,2987.0,2986.9,0.002]
[1752541684315,19.5267968,2987.0,2986.9,0.002]